bitfinex/quotes_ETHUSD_20251026
["timestamp","ask_amount","ask_price","bid_price","bid_amount"]
[1761498611736,0.001,4058.5,4058.4,4.52618956]
[1761498612235,0.001,4058.5,4058.4,3.86442604]
[1761498612757,0.001,4058.5,4058.4,3.40752604]
[1761498613054,0.001,4058.5,4058.4,4.52622218]
[1761498613224,0.001,4058.5,4058.4,3.86442604]
[1761498614909,0.001,4058.5,4058.4,3.40752604]
[1761498617734,0.001,4058.5,4058.4,3.86442604]
[1761498617952,0.001,4058.5,4058.4,5.41962604]
[1761498618242,0.001,4058.5,4058.4,6.30073828]
[1761498620136,0.001,4058.5,4058.4,5.84383828]
[1761498621234,0.001,4058.5,4058.4,4.96272604]
[1761498623355,0.001,4058.5,4058.4,5.41962604]
[1761498624778,0.001,4058.5,4058.4,4.96272604]
[1761498627279,0.001,4058.5,4058.4,4.14442523]
[1761498627484,0.4688,4058.5,4058.4,7.24842523]
[1761498627788,0.4688,4058.5,4058.4,5.69322523]
[1761498628567,0.4688,4058.5,4058.4,2.46602523]
[1761498628862,0.4688,4058.5,4058.4,3.12944427]
[1761498629291,0.001,4058.5,4058.4,3.12944427]
[1761498629995,0.001,4058.5,4058.4,2.49066548]
[1761498630169,0.001,4058.5,4058.4,3.81060952]
[1761498633702,0.001,4058.5,4058.4,3.41836286]
[1761498635783,0.001,4058.5,4058.4,3.87526286]
[1761498635984,0.001,4058.5,4058.4,4.75973114]
[1761498636214,0.001,4058.5,4058.4,3.87526286]
[1761498638109,0.001,4058.5,4058.4,7.14407327]
[1761498639011,0.001,4058.5,4058.4,5.82270952]
[1761498644033,0.001,4058.5,4058.4,5.95180952]
[1761498644244,0.001,4058.5,4058.4,5.48900952]
[1761498645249,0.001,4058.5,4058.4,5.95180952]
[1761498645648,0.001,4058.5,4058.4,5.48900952]
[1761498646564,0.001,4058.5,4058.4,5.95180952]
[1761498648057,0.001,4058.5,4058.4,5.48900952]
[1761498649867,0.001,4059.4,4059.3,2.46347892]
[1761498650029,0.001,4059.4,4059.3,7.51492558]
[1761498650223,0.001,4059.4,4059.3,7.97772558]
[1761498651350,0.001,4059.4,4059.3,9.30011964]
[1761498651773,0.001,4059.4,4059.3,4.01867892]
[1761498651941,0.4386,4059.4,4059.3,2.46347892]
[1761498652330,0.001,4059.4,4059.3,2.46347892]
[1761498652544,0.001,4059.4,4059.3,3.51028703]
[1761498653831,0.001,4059.4,4059.3,2.46347892]
[1761498654257,0.001,4059.4,4059.3,3.12484532]
[1761498654670,0.001,4059.4,4059.3,6.22884532]
[1761498654830,0.4386,4059.4,4059.3,6.22884532]
[1761498655031,0.4386,4059.4,4059.3,5.56747892]
[1761498655530,0.001,4059.4,4059.3,5.56747892]
[1761498655736,0.4386,4059.4,4059.3,6.4367221]
[1761498655930,0.4386,4059.4,4059.3,5.56747892]
[1761498658138,0.4386,4059.4,4059.3,2.46347892]
[1761498659734,0.5618,4059.4,4058.9,3.7653664]
[1761498659934,0.5618,4059.4,4058.9,0.6613664]
[1761498660174,0.4376,4059.3,4059.0,0.002]
[1761498660389,0.1232,4059.1,4059.0,0.002]
[1761498660610,0.5608,4059.1,4059.0,0.002]
[1761498662271,0.86332223,4059.1,4059.0,0.002]
[1761498662516,1.37020223,4059.1,4059.0,0.002]
[1761498662680,1.06768,4059.1,4059.0,0.002]
[1761498662880,3.5312803,4059.1,4059.0,0.002]
[1761498663404,5.0864803,4059.1,4059.0,0.002]
[1761498664898,8.1904803,4059.1,4059.0,0.002]
[1761498669586,5.72688,4059.1,4059.0,0.002]
[1761498670802,8.1904803,4059.1,4059.0,0.002]
[1761498670991,9.25597631,4059.1,4059.0,0.002]
[1761498672307,6.79237601,4059.1,4059.0,0.002]
[1761498672500,3.25077601,4059.1,4059.0,0.002]
[1761498672701,2.18528,4059.1,4059.0,0.002]
[1761498672939,2.64128,4059.1,4059.0,0.002]
[1761498673741,0.1232,4059.1,4059.0,0.002]
[1761498674487,0.5792,4059.1,4059.0,0.002]
[1761498678940,0.5802,4059.1,4059.0,0.002]
[1761498679097,0.1242,4059.1,4059.0,0.002]
[1761498679720,0.001,4059.1,4059.0,2.465661]
[1761498679942,0.001,4059.1,4059.0,2.95860519]
[1761498686134,0.001,4059.1,4059.0,3.39070519]
[1761498692258,0.001,4059.1,4059.0,4.51380519]
[1761498692474,0.001,4059.1,4059.0,5.29991593]
[1761498692636,0.001,4059.1,4059.0,5.33815185]
[1761498693727,0.6724,4060.8,4059.0,5.33815185]
[1761498693728,0.214,4061.4,4060.8,2.46256895]
[1761498693942,0.214,4061.4,4060.8,5.56956895]
[1761498694150,0.456,4061.3,4060.8,5.56956895]
[1761498695470,0.50688,4062.3,4060.8,5.56956895]
[1761498695471,0.456,4062.4,4061.8,2.46196267]
[1761498695638,0.456,4062.1,4061.6,3.11]
[1761498695840,0.456,4061.8,4061.7,2.4620173]
[1761498696068,0.456,4061.8,4060.9,2.21543665]
[1761498696263,0.456,4061.8,4061.4,2.46219719]
[1761498696463,0.456,4061.8,4060.7,1.5552]
[1761498696633,0.456,4061.8,4061.3,2.46224023]
[1761498696838,0.456,4061.8,4060.8,3.113]
[1761498696839,0.456,4061.8,4061.1,2.46238387]
[1761498697171,2.91796405,4061.8,4060.9,2.46245034]
[1761498697466,2.46196405,4061.8,4060.9,2.46245034]
[1761498697667,0.456,4061.7,4060.9,2.46245034]
[1761498697871,0.31419641,4061.6,4060.9,2.46245034]
[1761498698256,0.456,4061.5,4061.0,2.46244122]
[1761498698570,0.001,4061.4,4060.8,3.113]
[1761498698972,0.468,4061.3,4060.8,3.113]
[1761498699272,0.468,4061.3,4060.8,5.57554538]
[1761498699570,0.468,4061.3,4060.9,2.46249395]
[1761498699940,0.468,4061.3,4060.8,5.57556339]
[1761498700137,0.468,4061.3,4060.4,2.46275664]
[1761498700342,0.468,4061.3,4060.6,2.46267503]
[1761498700543,0.79254104,4061.3,4060.6,2.46267503]
[1761498700756,0.79254104,4061.3,4060.5,3.112]
[1761498700968,0.468,4061.2,4060.5,3.112]
[1761498701174,0.468,4061.2,4060.6,2.46269024]
[1761498702270,0.468,4061.2,4060.7,2.46261756]
[1761498702476,0.5912,4061.2,4060.7,2.46261756]
[1761498702973,0.468,4061.1,4060.7,2.46261756]
[1761498703173,0.468,4061.1,4060.6,2.58588261]
[1761498704672,0.77344219,4061.1,4060.6,0.1232]
[1761498704888,0.77344219,4061.1,4059.8,1.5552]
[1761498704889,0.2308,4060.7,4060.4,0.1232]
[1761498705354,0.468,4060.6,4060.4,0.1232]
[1761498705550,0.468,4060.6,4060.4,2.58598972]
[1761498706155,0.468,4060.6,4060.4,0.1232]
[1761498706359,0.468,4060.6,4060.2,2.46288877]
[1761498706569,0.468,4060.6,4060.2,0.1232]
[1761498708386,0.5912,4060.6,4060.2,0.1232]
[1761498708798,0.468,4060.5,4060.2,0.1232]
[1761498709369,3.90746395,4060.5,4059.7,0.1232]
[1761498709568,0.1232,4060.2,4059.7,0.1232]
[1761498709967,0.468,4060.1,4059.7,0.1232]
[1761498710388,0.468,4060.1,4059.7,2.58643525]
[1761498710976,0.1232,4060.2,4059.7,0.1232]
[1761498711171,0.1232,4060.2,4059.8,2.91717552]
[1761498711578,0.1232,4060.2,4059.8,2.46317552]
[1761498711979,0.1232,4060.2,4059.7,0.1232]
[1761498712300,0.5912,4060.2,4059.7,0.1232]
[1761498712697,0.5912,4060.2,4059.8,2.46315948]
[1761498713695,0.001,4061.4,4060.1,0.1399]
[1761498714075,0.468,4061.3,4060.1,0.1399]
[1761498714401,0.468,4061.3,4060.6,2.46264802]
[1761498714709,2.9302702,4061.3,4060.6,2.4626617]
[1761498715014,0.29312702,4061.2,4060.6,2.4626617]
[1761498715215,0.76112702,4061.2,4060.6,2.4626617]
[1761498715715,0.468,4061.1,4060.5,2.46273241]
[1761498715888,0.468,4061.1,4060.4,5.57980479]
[1761498716087,0.468,4061.1,4060.4,2.46280479]
[1761498716309,0.468,4061.1,4060.5,2.46272513]
[1761498716987,0.001,4060.9,4060.5,2.46272513]
[1761498717388,0.468,4060.8,4060.5,2.46272513]
[1761498718416,0.468,4060.8,4060.6,2.46268354]
[1761498719125,0.468,4060.8,4060.5,2.46273486]
[1761498719687,0.2318,4060.9,4060.6,2.46266367]
[1761498719895,0.2318,4060.9,4060.8,2.46256895]
[1761498720090,0.001,4060.9,4060.8,2.46256895]
[1761498720425,0.001,4060.9,4060.7,2.46261815]
[1761498721936,0.001,4060.9,4060.6,2.46267948]
[1761498722293,0.4348,4060.9,4060.6,2.46267948]
[1761498723228,0.001,4060.9,4060.6,2.46267948]
[1761498723429,0.001,4060.9,4060.7,2.46262651]
[1761498725237,0.001,4060.9,4060.8,6.04016895]
[1761498725407,0.001,4060.9,4060.8,6.16336895]
[1761498728617,0.001,4060.9,4060.8,5.69976895]
[1761498728817,0.001,4060.9,4060.8,6.13236895]
[1761498730342,0.001,4060.9,4060.8,5.69976895]
[1761498730537,0.001,4060.9,4060.8,6.63913358]
[1761498730835,0.001,4060.9,4060.8,7.07173358]
[1761498739257,0.001,4060.9,4060.8,3.52513358]
[1761498739564,0.001,4060.9,4060.8,1.06256463]
[1761498739771,0.4439,4060.9,4060.8,3.2342]
[1761498739957,0.4439,4060.9,4060.8,5.69676895]
[1761498740357,0.001,4060.9,4060.8,5.69676895]
[1761498740731,0.001,4060.9,4060.8,3.2342]
[1761498741129,1.23380798,4159.5,4062.8,2.46135669]
[1761498741130,0.89446625,4062.9,4062.8,2.46135669]
[1761498741390,0.01,4062.9,4062.8,7.65013502]
[1761498741532,0.01,4062.9,4062.8,4.7292]
[1761498741734,0.4404,4063.6,4062.9,1.5552]
[1761498741937,0.4404,4063.6,4063.5,1.31924478]
[1761498742136,0.4404,4063.6,4063.5,1.84690993]
[1761498742377,0.4404,4063.6,4063.5,1.40565566]
[1761498742768,0.4404,4063.6,4063.5,3.86658835]
[1761498743117,0.4404,4063.6,4063.5,0.75639197]
[1761498743472,0.2,4063.8,4063.5,1.4143395]
[1761498743639,0.4404,4063.7,4063.6,1.4143395]
[1761498744273,0.4404,4063.7,4063.6,0.52766515]
[1761498744644,0.75150346,4063.7,4063.6,0.52766515]
[1761498744879,0.4404,4063.7,4063.6,0.52766515]
[1761498747215,0.50688,4063.4,4062.7,0.65794753]
[1761498747422,0.50688,4063.4,4062.8,0.52553904]
[1761498747423,0.50688,4063.3,4062.8,0.52553904]
[1761498747621,0.50688,4063.0,4062.9,0.52553904]
[1761498747788,1.41103218,4063.0,4062.9,0.52553904]
[1761498747988,1.85143218,4063.0,4062.9,0.52553904]
[1761498748590,0.94728,4063.0,4062.9,0.52553904]
[1761498748976,3.40851554,4063.0,4062.9,0.52553904]
[1761498751117,3.53171554,4063.0,4062.9,0.52553904]
[1761498752119,3.53171554,4063.0,4062.2,0.65794753]
[1761498752120,2.46159905,4062.4,4062.2,0.65794753]
[1761498752324,2.96847905,4062.4,4062.3,0.52553841]
[1761498752493,2.4620839,4061.6,4061.1,0.66794753]
[1761498752696,3.172,4061.5,4061.2,0.64915234]
[1761498752878,3.172,4061.6,4061.3,0.52595234]
[1761498753078,3.172,4061.6,4061.4,0.52595234]
[1761498753293,3.172,4061.6,4061.5,0.52595234]
[1761498753516,3.172,4061.6,4061.1,0.01]
[1761498753517,2.46214788,4061.5,4061.1,0.01]
[1761498753715,2.46214788,4061.5,4061.2,0.52597157]
[1761498753885,0.4423,4061.4,4061.3,0.52597157]
[1761498754084,0.5655,4061.4,4061.3,0.52597157]
[1761498757037,6.19770515,4061.4,4061.3,0.52597157]
[1761498758235,3.7355,4061.4,4061.3,0.52597157]
[1761498759219,6.19770515,4061.4,4061.3,0.52597157]
[1761498760710,3.7355,4061.4,4061.3,0.52597157]
[1761498760907,3.2932,4061.4,4061.3,0.52597157]
[1761498762316,6.19770515,4061.4,4061.3,0.52597157]
[1761498763333,6.19270515,4061.4,4061.3,0.52597157]
[1761498764547,5.75040515,4061.4,4061.3,0.52597157]
[1761498764852,5.74940515,4061.4,4061.3,0.52597157]
[1761498765048,2.58540515,4061.4,4061.3,0.52597157]
[1761498765249,5.74940515,4061.4,4061.3,0.52597157]
[1761498766637,3.2872,4061.4,4061.3,0.52597157]
[1761498766838,5.74940515,4061.4,4061.3,0.52597157]
[1761498767044,6.19170515,4061.4,4061.3,0.52597157]
[1761498767256,7.05708438,4061.4,4061.3,0.52597157]
[1761498767474,2.9692064,4061.2,4061.1,0.01]
[1761498767625,2.9692064,4061.2,4061.1,0.53644464]
[1761498767957,3.4115064,4061.2,4061.1,0.01]
[1761498768848,4.9667064,4061.2,4061.1,0.01]
[1761498769049,6.12485548,4061.2,4061.1,0.01]
[1761498769961,6.12485548,4061.2,4061.1,1e-08]
[1761498771456,6.12485548,4061.2,4061.1,0.00200001]
[1761498773248,6.22340811,4061.2,4061.1,0.00200001]
[1761498774172,4.52489154,4060.4,4060.3,0.002]
[1761498774366,8.38465383,4060.4,4060.3,0.002]
[1761498774662,8.94835383,4060.4,4060.3,0.002]
[1761498789585,5.22365383,4060.4,4060.3,0.002]
[1761498789791,7.80009154,4060.4,4060.3,0.002]
[1761498790080,7.80109154,4060.4,4060.3,0.99197979]
[1761498790649,7.80109154,4060.4,4060.3,0.52937979]
[1761498792712,7.80109154,4060.4,4060.3,0.99197979]
[1761498792912,2.46263262,4060.7,4060.3,0.99197979]
[1761498793078,0.001,4061.2,4060.5,0.65794753]
[1761498793079,5.61369024,4060.6,4060.5,0.65794753]
[1761498793279,5.61369024,4060.6,4060.5,1.64792732]
[1761498793901,5.61369024,4060.6,4060.5,1.18532732]
[1761498794092,5.61369024,4060.6,4060.5,0.52737979]
[1761498794300,5.61369024,4060.6,4060.5,1.18532732]
[1761498795618,5.61369024,4060.6,4060.5,1.18911067]
[1761498796226,5.61369024,4060.6,4060.5,0.99109363]
[1761498796227,3.151,4060.6,4060.5,0.99109363]
[1761498796598,3.151,4060.6,4060.5,1.86908414]
[1761498796803,3.151,4060.6,4060.5,2.43440099]
[1761498797189,3.151,4060.6,4060.5,2.43754876]
[1761498797384,3.151,4060.6,4060.5,1.55641048]
[1761498800620,3.151,4060.6,4060.5,0.99109363]
[1761498800936,2.46333843,4061.2,4060.5,0.99109363]
[1761498801116,3.149,4061.1,4060.9,0.88100892]
[1761498801426,3.149,4061.1,4060.6,2.31033841]
[1761498801427,3.149,4061.1,4061.0,0.99109363]
[1761498802036,5.61138703,4061.1,4061.0,0.99109363]
[1761498802392,5.61138703,4061.1,4061.0,1.65146074]
[1761498802796,3.2722,4061.1,4061.0,1.65146074]
[1761498803320,3.2692,4061.1,4061.0,1.65146074]
[1761498804428,3.2692,4061.1,4061.0,0.99109363]
[1761498804601,0.1232,4061.1,4061.0,0.99109363]
[1761498804798,3.2692,4061.1,4061.0,0.99109363]
[1761498805130,3.2682,4061.1,4061.0,0.99109363]
[1761498806303,3.145,4061.1,4061.0,0.99109363]
[1761498809623,3.146,4061.1,4061.0,0.99109363]
[1761498812943,5.60838703,4061.1,4061.0,0.52849363]
[1761498813127,6.84557676,4061.1,4061.0,0.52849363]
[1761498816204,6.93475676,4061.1,4061.0,0.52849363]
[1761498819350,6.11526703,4061.1,4061.0,0.52849363]
[1761498822310,6.11526703,4061.1,4061.0,1.18886074]
[1761498822947,3.65288,4061.1,4061.0,1.18886074]
[1761498823106,6.11526703,4061.1,4061.0,1.18886074]
[1761498825245,6.11526703,4061.1,4061.0,0.52849363]
[1761498825546,6.11526703,4061.1,4061.0,1.19041611]
[1761498826107,6.11526703,4061.1,4061.0,0.52849363]
[1761498831829,6.11526703,4061.1,4061.0,1.19113911]
[1761498831830,7.44481054,4061.1,4061.0,1.19113911]
[1761498832460,7.44481054,4061.1,4061.0,0.52849363]
[1761498833123,7.44481054,4061.1,4060.8,0.002]
[1761498833124,2.96938831,4060.9,4060.8,0.002]
[1761498833324,3.09258831,4060.9,4060.8,0.53201974]
[1761498833560,3.51028831,4060.9,4060.8,0.53201974]
[1761498833765,4.5133402,4060.9,4060.8,0.53201974]
[1761498834961,4.13405189,4060.9,4060.8,0.53201974]
[1761498835131,3.131,4060.9,4060.8,0.53201974]
[1761498835335,5.59350831,4060.9,4060.8,0.53201974]
[1761498836355,3.131,4060.9,4060.8,0.53201974]
[1761498837072,5.59350831,4060.9,4060.8,0.53201974]
[1761498839283,3.131,4060.9,4060.8,0.53201974]
[1761498840083,5.59350831,4060.9,4060.8,0.53201974]
[1761498843514,0.001,4061.1,4060.8,0.53201974]
[1761498843669,0.001,4061.1,4060.9,0.53001974]
[1761498843878,0.436,4061.1,4061.0,0.53001974]
[1761498844098,0.436,4061.1,4061.0,0.97461974]
[1761498847412,0.001,4061.1,4061.0,0.97461974]
[1761498847576,3.13,4061.1,4061.0,0.97461974]
[1761498849282,0.001,4061.1,4061.0,3.43706741]
[1761498849502,0.001,4061.1,4061.0,1.64336043]
[1761498849696,0.001,4061.1,4061.0,1.76656043]
[1761498850691,0.001,4061.1,4061.0,4.2290081]
[1761498853109,0.001,4061.1,4061.0,4.89165358]
[1761498854327,0.001,4061.1,4061.0,4.2290081]
[1761498854611,0.001,4061.1,4061.0,5.8487686]
[1761498855598,0.001,4061.1,4061.0,4.96775968]
[1761498860386,0.001,4061.1,4061.0,5.8487686]
[1761498860832,0.001,4061.1,4061.0,4.96775968]
[1761498862124,0.001,4061.1,4061.0,4.99238415]
[1761498862321,0.001,4061.1,4061.0,4.96775968]
[1761498872567,0.001,4061.1,4061.0,4.52315968]
[1761498872774,0.001,4061.1,4061.0,4.97625968]
[1761498873511,0.001,4061.1,4061.0,4.52315968]
[1761498873984,0.001,4061.1,4061.0,4.97625968]
[1761498877414,0.001,4061.1,4061.0,4.52315968]
[1761498879419,0.001,4061.1,4061.0,5.84240446]
[1761498879930,0.001,4061.1,4061.0,2.7112161]
[1761498880148,0.4484,4061.1,4061.0,0.65321974]
[1761498880825,0.001,4061.1,4061.0,3.11566741]
[1761498882414,0.001,4061.1,4061.0,4.43491219]
[1761498882905,0.001,4061.1,4061.0,0.65321974]
[1761498883229,0.001,4061.1,4061.0,3.11566741]
[1761498888028,0.4484,4061.1,4061.0,3.11566741]
[1761498888542,0.001,4061.1,4061.0,3.11566741]
[1761498899669,0.001,4061.1,4061.0,0.53001974]
[1761498899968,0.4484,4061.1,4061.0,0.53001974]
[1761498900359,0.5716,4061.1,4061.0,0.53001974]
[1761498900555,1.1212152,4061.1,4061.0,0.53001974]
[1761498900773,4.09048223,4061.1,4061.0,1.19185912]
[1761498900984,4.09048223,4061.1,4061.0,0.53001974]
[1761498904190,3.96728223,4061.1,4061.0,0.53001974]
[1761498904391,2.96938831,4060.9,4060.8,0.002]
[1761498904714,2.96938831,4060.9,4060.8,0.53105007]
[1761498904893,3.41678831,4060.9,4060.8,0.002]
[1761498906190,3.5644,4060.9,4060.8,0.002]
[1761498910010,6.02690831,4060.9,4060.8,0.002]
[1761498910211,6.94023437,4060.9,4060.8,0.002]
[1761498913173,4.47772606,4060.9,4060.8,0.002]
[1761498913617,6.94023437,4060.9,4060.8,0.002]
[1761498914214,7.06343437,4060.9,4060.8,0.002]
[1761498915513,3.94643437,4060.9,4060.8,0.002]
[1761498915718,7.06343437,4060.9,4060.8,0.002]
[1761498916324,4.60092606,4060.9,4060.8,0.002]
[1761498916706,7.06343437,4060.9,4060.8,0.002]
[1761498917110,3.94643437,4060.9,4060.8,0.002]
[1761498917432,7.06343437,4060.9,4060.8,0.002]
[1761498918344,7.06443437,4060.9,4060.8,0.002]
[1761498924635,9.12651437,4060.9,4060.8,0.002]
[1761498925247,9.22505826,4060.9,4060.8,0.002]
[1761498944320,5.15377826,4060.9,4060.8,0.002]
[1761498944500,7.57430831,4060.9,4060.8,0.002]
[1761498944702,8.17972904,4060.9,4060.8,0.002]
[1761498954349,8.30292904,4060.9,4060.8,0.002]
[1761498957438,4.74732904,4060.9,4060.8,0.002]
[1761498957743,7.86332904,4060.9,4060.8,0.002]
[1761498959341,4.74732904,4060.9,4060.8,0.002]
[1761498959657,7.76478831,4060.9,4060.8,0.4451]
[1761498961178,2.58670831,4060.9,4060.8,0.4451]
[1761498961378,5.70270831,4060.9,4060.8,0.4451]
[1761498963178,0.1242,4060.9,4060.8,0.463]
[1761498963378,0.1242,4060.9,4060.8,1.48523675]
[1761498964267,0.1242,4060.9,4060.8,0.8243222]
[1761498964463,0.1242,4060.9,4060.8,0.463]
[1761498966086,3.117,4060.9,4060.8,0.463]
[1761498967874,6.20958831,4060.9,4060.8,0.002]
[1761498968382,6.20958831,4060.9,4060.8,0.463]
[1761498969480,6.20958831,4060.9,4060.8,0.002]
[1761498970004,6.20958831,4060.9,4060.8,0.4378]
[1761498971771,6.20958831,4060.9,4060.8,0.002]
[1761498972104,3.09358831,4060.9,4060.8,0.002]
[1761498972311,6.20858831,4060.9,4060.8,0.4378]
[1761498974486,6.20858831,4060.9,4060.8,0.002]
[1761498985606,3.2382,4060.9,4060.8,0.4378]
[1761498989693,3.2382,4060.9,4060.8,3.19062259]
[1761498989694,0.001,4060.9,4060.8,3.19062259]
[1761498989900,0.001,4060.9,4060.8,3.97473714]
[1761498999347,0.001,4060.9,4060.8,3.31382259]
[1761499000045,0.001,4060.9,4060.8,3.97473714]
[1761499000344,0.001,4060.9,4060.8,3.31382259]
[1761499001339,0.001,4060.9,4060.8,3.97473714]
[1761499001648,0.001,4060.9,4060.8,3.31382259]
[1761499009360,0.001,4060.9,4060.8,3.97473714]
[1761499011772,0.001,4060.9,4060.8,3.53893714]
[1761499013769,0.001,4060.9,4060.8,3.97503714]
[1761499015241,0.001,4060.9,4060.8,3.31412259]
[1761499019276,0.001,4060.9,4060.8,4.19644541]
[1761499021096,6.00940831,4060.9,4060.8,0.66337609]
[1761499021261,3.6701,4060.9,4060.8,0.002]
[1761499022286,6.13260831,4060.9,4060.8,0.002]
[1761499022493,3.6701,4060.9,4060.8,0.002]
[1761499022861,4.28345649,4060.9,4060.8,0.002]
[1761499028253,0.1242,4060.9,4060.8,0.002]
[1761499028488,3.2362,4060.9,4060.8,0.002]
[1761499028670,0.1242,4060.9,4060.8,0.002]
[1761499028894,3.2362,4060.9,4060.8,0.002]
[1761499042683,3.6825,4060.9,4060.8,0.002]
[1761499045611,8.69848311,4060.9,4060.8,0.002]
[1761499046014,9.43756047,4060.9,4060.8,0.002]
[1761499055250,9.43756047,4060.9,4060.5,1e-08]
[1761499055251,2.96957024,4060.6,4060.5,1e-08]
[1761499055449,7.63577024,4060.6,4060.5,1e-08]
[1761499055743,8.20527024,4060.6,4060.5,1e-08]
[1761499055947,9.43218078,4060.6,4060.5,1e-08]
[1761499085014,5.36800078,4060.6,4060.5,1e-08]
[1761499085196,5.57269024,4060.6,4060.5,1e-08]
[1761499085383,7.63477024,4060.6,4060.5,0.44410001]
[1761499085911,7.63577024,4060.6,4060.5,0.44410001]
[1761499086989,7.63577024,4060.6,4060.5,1e-08]
[1761499087190,8.69033847,4060.6,4060.5,1e-08]
[1761499087392,7.63577024,4060.6,4060.5,1e-08]
[1761499087610,7.63577024,4060.6,4060.5,0.44410001]
[1761499088212,7.63577024,4060.6,4060.5,1e-08]
[1761499088400,7.63577024,4060.6,4060.5,0.44410001]
[1761499092209,2.06308,4060.6,4060.5,0.44410001]
[1761499092431,5.17208,4060.6,4060.5,0.44410001]
[1761499092674,6.07957024,4060.6,4060.5,0.44410001]
[1761499092814,7.63477024,4060.6,4060.5,0.44410001]
[1761499093121,7.63477024,4060.6,4060.5,0.42980001]
[1761499095114,7.75797024,4060.6,4060.5,0.42980001]
[1761499096593,7.75797024,4060.6,4060.5,1e-08]
[1761499096791,7.75797024,4060.6,4060.5,0.42980001]
[1761499098624,7.75797024,4060.6,4060.5,1e-08]
[1761499098987,7.75797024,4060.6,4060.5,0.42980001]
[1761499100728,0.63108,4060.6,4060.5,0.42980001]
[1761499100931,3.74008,4060.6,4060.5,0.42980001]
[1761499101436,3.09377024,4060.6,4060.5,0.42980001]
[1761499101744,0.001,4060.6,4060.5,0.42980001]
[1761499102039,3.11,4060.6,4060.5,0.73159275]
[1761499105497,0.001,4060.6,4060.5,0.73159275]
[1761499105819,0.001,4060.6,4060.5,0.55300001]
[1761499106019,0.001,4060.6,4060.5,0.65151598]
[1761499106595,0.001,4060.6,4060.5,3.11426687]
[1761499109717,0.001,4060.6,4060.5,4.57089437]
[1761499110050,0.001,4060.6,4060.5,4.54626687]
[1761499110226,0.001,4060.6,4060.5,5.37930183]
[1761499110565,0.001,4060.6,4060.5,3.79695223]
[1761499110847,0.001,4060.6,4060.5,1.36135094]
[1761499111046,0.001,4060.6,4060.5,3.82410183]
[1761499113780,0.001,4060.6,4060.5,1.36135094]
[1761499113984,0.001,4060.6,4060.5,0.52831598]
[1761499114180,0.001,4060.6,4060.5,2.99106687]
[1761499115085,0.001,4060.6,4060.5,0.52831598]
[1761499119080,0.001,4060.6,4060.5,2.99106687]
[1761499119689,0.001,4060.6,4060.5,3.11426687]
[1761499119886,0.001,4060.6,4060.5,3.8937564]
[1761499124294,0.001,4060.6,4060.5,0.65151598]
[1761499125993,0.001,4060.6,4060.5,3.11426687]
[1761499126499,0.001,4060.6,4060.5,3.77484383]
[1761499128763,0.001,4060.6,4060.5,3.79994383]
[1761499129614,0.001,4060.6,4060.5,3.13936687]
[1761499130206,0.001,4060.6,4060.5,3.78782643]
[1761499130627,0.001,4060.6,4060.5,3.81245393]
[1761499131912,0.001,4060.6,4060.5,3.78782643]
[1761499132115,0.001,4060.6,4060.5,4.66822772]
[1761499134816,0.001,4060.6,4060.5,4.69285522]
[1761499135018,0.001,4060.6,4060.5,4.66822772]
[1761499135817,0.001,4060.6,4060.5,2.20547683]
[1761499136116,0.001,4060.6,4060.5,4.66822772]
[1761499140398,0.001,4060.6,4060.5,3.78782643]
[1761499146924,0.001,4060.6,4060.5,3.68931046]
[1761499150548,0.001,4060.6,4060.5,1.22655957]
[1761499150922,0.001,4060.6,4060.5,0.77165957]
[1761499151316,0.001,4060.6,4060.5,3.23441046]
[1761499157172,0.001,4060.6,4060.5,0.12320001]
[1761499157361,0.001,4060.6,4060.5,1.00735927]
[1761499157549,0.4343,4060.6,4060.5,1.00735927]
[1761499157741,0.001,4060.6,4060.5,1e-08]
[1761499157938,0.001,4060.6,4060.5,0.88415927]
[1761499158270,0.001,4060.6,4060.5,1e-08]
[1761499165183,0.001,4060.6,4060.5,3.2840666]
[1761499166754,0.001,4060.6,4060.5,3.3086941]
[1761499168780,0.001,4060.6,4060.5,3.2840666]
[1761499171806,0.001,4060.6,4060.5,4.8392666]
[1761499172299,0.001,4060.6,4060.5,6.15851138]
[1761499175280,0.001,4060.6,4060.5,6.28171138]
[1761499176298,0.001,4060.6,4060.5,9.38671138]
[1761499176710,0.001,4060.6,4060.5,9.48521401]
[1761499179189,0.001,4060.6,4060.5,8.16596923]
[1761499186018,0.001,4060.6,4060.5,9.48521401]
[1761499186217,0.001,4060.6,4060.5,8.16596923]
[1761499189601,0.001,4060.6,4060.5,12.04596923]
[1761499206861,0.001,4060.6,4060.5,11.9474666]
[1761499207364,0.001,4060.6,4060.5,13.6466289]
[1761499207660,0.001,4060.6,4060.5,13.74510946]
[1761499210359,0.001,4060.6,4060.5,10.21110946]
[1761499210570,0.001,4060.6,4060.5,13.04784716]
[1761499210764,0.001,4060.6,4060.5,13.50904716]
[1761499211969,0.001,4060.6,4060.5,13.77530946]
[1761499216170,0.001,4060.6,4060.5,13.50904716]
[1761499217262,1e-08,4061.1,4061.0,2.46244767]
[1761499217572,1e-08,4061.1,4061.0,7.11964767]
[1761499217776,1e-08,4061.1,4061.0,7.58084767]
[1761499217977,1e-08,4061.1,4061.0,7.11964767]
[1761499218379,1e-08,4061.1,4061.0,8.59764767]
[1761499218563,1e-08,4061.1,4061.0,10.3929338]
[1761499219471,1e-08,4061.1,4061.0,10.8541338]
[1761499219677,1e-08,4061.1,4061.0,10.3929338]
[1761499219878,0.001,4061.4,4061.3,2.46226577]
[1761499220078,0.001,4061.4,4061.3,7.11946577]
[1761499220243,0.001,4061.4,4061.3,8.87344004]
[1761499220558,0.001,4061.4,4061.3,8.97190703]
[1761499226372,0.001,4061.4,4061.3,12.85190703]
[1761499226972,0.001,4061.4,4061.3,13.31310703]